[Event "Skalica SCHAEFFLER Open 2019"]
[Site "Skalica"]
[Date "2019.08.28"]
[Round "5.8"]
[White "Bartos, Bohumil"]
[Black "Ralbovsky, Milan"]
[Result "1/2-1/2"]
[ECO "D02"]
[WhiteElo "1548"]
[BlackElo "1340"]
[Annotator "NA"]
[PlyCount "140"]
[EventDate "2019.08.25"]
[EventType "swiss"]
[EventCountry "SVK"]
[SourceTitle "playchess.com"]
[Source "ChessBase"]
[SourceQuality "1"]
[TimeControl "40/5400+30:1800+30"]

1. d4 {[%emt 0:00:00]} d5 {[%emt 0:00:00]} 2. Bf4 {[%emt 0:00:00]} Nf6 {[%emt 0:00:41]} 3. e3 {[%emt 0:00:20]} Bf5 {[%emt 0:00:33]} 4. h3 {[%emt 0:00:42]} e6 {[%emt 0:00:34]} 5. Nf3 {[%emt 0:00:59]} h6 {[%emt 0:00:52]} 6. c3 {[%emt 0:01:20]} Bd6 {[%emt 0:00:21]} 7. Bxd6 {[%emt 0:03:28]} cxd6 {[%emt 0:00:39]} 8. Bd3 {[%emt 0:02:08]} Bh7 {[%emt 0:00:43]} 9. Bb5+ {[%emt 0:02:21]} Nbd7 {[%emt 0:00:12]} 10. Qa4 {[%emt 0:01:22]} O-O {[%emt 0:00:56]} 11. Qd1 {[%emt 0:03:52]} Qb6 {[%emt 0:00:45]} 12. Qb3 {[%emt 0:00:59]} a6 {[%emt 0:04:58]} 13. Be2 {[%emt 0:01:53]} Rfc8 {[%emt 0:02:37]} 14. Nbd2 {[%emt 0:00:39]} Rc6 {[%emt 0:00:48]} 15. O-O {[%emt 0:00:46]} Rac8 {[%emt 0:01:31]} 16. Rfc1 {[%emt 0:07:39]} Qa7 {[%emt 0:04:00]} 17. Qd1 {[%emt 0:00:36]} Rb6 {[%emt 0:00:29]} 18. Nb3 {[%emt 0:00:14]} a5 {[%emt 0:02:24]} 19. a4 {[%emt 0:02:20]} Ne4 {[%emt 0:01:39]} 20. Bd3 {[%emt 0:00:58]} e5 {[%emt 0:06:41]} 21. Qc2 {[%emt 0:00:55]} Ndf6 {[%emt 0:01:45]} 22. dxe5 {[%emt 0:00:35]} dxe5 {[%emt 0:14:43]} 23. Nxe5 {[%emt 0:00:56]} Re8 {[%emt 0:13:42]} 24. Nf3 {[%emt 0:01:41]} Ng5 {[%emt 0:04:43]} 25. Bxh7+ {[%emt 0:00:56]} Nfxh7 {[%emt 0:00:44]} 26. Nfd4 {[%emt 0:02:45]} Rf6 {[%emt 0:03:09]} 27. Nd2 {[%emt 0:04:47]} Rg6 {[%emt 0:01:39]} 28. Qf5 {[%emt 0:07:14]} Qb8 {[%emt 0:02:55]} 29. N2f3 {[%emt 0:08:20]} Nxf3+ {[%emt 0:03:28]} 30. Nxf3 {[%emt 0:04:25]} Ng5 {[%emt 0:01:47]} 31. Nxg5 {[%emt 0:03:04]} Rxg5 {[%emt 0:00:40]} 32. Qf4 {[%emt 0:04:12]} Qc8 {[%emt 0:01:26]} 33. Qh2 {[%emt 0:00:55]} Rh5 {[%emt 0:03:50]} 34. Rd1 {[%emt 0:02:50]} Re6 {[%emt 0:00:18]} 35. Rd4 {[%emt 0:00:10]} Rg6 {[%emt 0:00:36]} 36. g4 {[%emt 0:01:31]} Rh4 {[%emt 0:01:48]} 37. Qg3 {[%emt 0:00:51]} Qd8 {[%emt 0:00:57]} 38. Rad1 {[%emt 0:04:39]} f5 {[%emt 0:01:02]} 39. f3 {[%emt 0:04:50]} fxg4 {[%emt 0:00:33]} 40. fxg4 {[%emt 0:03:01]} h5 {[%emt 0:00:47]} 41. Rf4 {[%emt 0:33:34]} hxg4 {[%emt 0:30:33]} 42. Rxg4 {[%emt 0:00:18]} Rhxg4 {[%emt 0:02:52]} 43. hxg4 {[%emt 0:00:20]} Rb6 {[%emt 0:00:46]} 44. Rd2 {[%emt 0:00:50]} Qd7 {[%emt 0:01:16]} 45. Qg2 {[%emt 0:02:48]} Rg6 {[%emt 0:12:40]} 46. Rd4 {[%emt 0:00:30]} Qe6 {[%emt 0:00:30]} 47. Kf2 {[%emt 0:02:34]} Rf6+ {[%emt 0:02:58]} 48. Ke2 {[%emt 0:11:53]} Qa6+ {[%emt 0:00:30]} 49. Kd2 {[%emt 0:00:30]} Kh7 {[%emt 0:00:30]} 50. Rxd5 {[%emt 0:00:30]} Rd6 {[%emt 0:00:30]} 51. Qh2+ {[%emt 0:00:30]} Rh6 {[%emt 0:00:30]} 52. Rh5 {[%emt 0:00:30]} Qb6 {[%emt 0:00:30]} 53. Rxh6+ {[%emt 0:00:30]} gxh6 {[%emt 0:00:30]} 54. Kc1 {[%emt 0:00:30]} Qxe3+ {[%emt 0:00:30]} 55. Qd2 {[%emt 0:00:30]} Qg1+ {[%emt 0:00:30]} 56. Qd1 {[%emt 0:00:30]} Qe3+ {[%emt 0:00:30]} 57. Kb1 {[%emt 0:00:30]} Qe4+ {[%emt 0:00:30]} 58. Qc2 {[%emt 0:00:30]} Qxc2+ {[%emt 0:00:30]} 59. Kxc2 {[%emt 0:00:30]} Kg6 {[%emt 0:00:30]} 60. Kd3 {[%emt 0:00:30]} Kg5 {[%emt 0:00:30]} 61. Ke2 {[%emt 0:00:30]} Kxg4 {[%emt 0:00:30]} 62. Kf2 {[%emt 0:00:30]} h5 {[%emt 0:00:30]} 63. Kg2 {[%emt 0:00:30]} h4 {[%emt 0:00:30]} 64. b4 {[%emt 0:00:30]} axb4 {[%emt 0:00:30]} 65. cxb4 {[%emt 0:00:30]} h3+ {[%emt 0:00:30]} 66. Kh2 {[%emt 0:00:30]} Kf4 {[%emt 0:00:30]} 67. a5 {[%emt 0:00:30]} Ke5 {[%emt 0:00:30]} 68. b5 {[%emt 0:00:30]} Kd6 {[%emt 0:00:30]} 69. a6 {[%emt 0:00:30]} bxa6 {[%emt 0:00:30]} 70. bxa6 {[%emt 0:00:30]} Kc6 {[%emt 0:00:30]} 1/2-1/2

[Event "Skalica SCHAEFFLER Open 2019"]
[Site "Skalica"]
[Date "2019.08.28"]
[Round "5.9"]
[White "Delgerdalai, Bayarjavkhlan"]
[Black "Kozusnikova, Daniela"]
[Result "0-1"]
[ECO "C58"]
[WhiteElo "1460"]
[BlackElo "1235"]
[Annotator "NA"]
[PlyCount "79"]
[EventDate "2019.08.25"]
[EventType "swiss"]
[EventCountry "SVK"]
[SourceTitle "playchess.com"]
[Source "ChessBase"]
[SourceQuality "1"]
[TimeControl "40/5400+30:1800+30"]

1. e4 {[%emt 0:00:00]} e5 {[%emt 0:00:00]} 2. Nf3 {[%emt 0:00:00]} Nc6 {[%emt 0:00:00]} 3. Bc4 {[%emt 0:00:00]} Nf6 {[%emt 0:00:10]} 4. Ng5 {[%emt 0:00:00]} d5 {[%emt 0:00:12]} 5. exd5 {[%emt 0:00:05]} Na5 {[%emt 0:00:14]} 6. Bb5+ {[%emt 0:00:05]} c6 {[%emt 0:00:18]} 7. dxc6 {[%emt 0:00:18]} bxc6 {[%emt 0:00:24]} 8. Bd3 {[%emt 0:00:36]} Bc5 {[%emt 0:01:30]} 9. O-O {[%emt 0:01:38]} O-O {[%emt 0:01:14]} 10. Nc3 {[%emt 0:01:33]} Qd4 {[%emt 0:11:13]} 11. Nf3 {[%emt 0:09:08]} Qf4 {[%emt 0:02:53]} 12. Ne2 {[%emt 0:02:42]} Qh6 {[%emt 0:05:43]} 13. Ng3 {[%emt 0:05:05]} Re8 {[%emt 0:03:14]} 14. Be4 {[%emt 0:08:28]} Nxe4 {[%emt 0:06:26]} 15. Nxe4 {[%emt 0:01:17]} Bb6 {[%emt 0:03:23]} 16. d3 {[%emt 0:03:50]} Qg6 {[%emt 0:05:02]} 17. Re1 {[%emt 0:03:41]} Bd8 {[%emt 0:13:51]} 18. b4 {[%emt 0:11:03]} Nb7 {[%emt 0:05:17]} 19. Bb2 {[%emt 0:03:40]} Bg4 {[%emt 0:05:52]} 20. Kh1 {[%emt 0:08:05]} f5 {[%emt 0:01:28]} 21. Ned2 {[%emt 0:02:31]} e4 {[%emt 0:05:59]} 22. Rg1 {[%emt 0:09:14]} Qh6 {[%emt 0:03:42]} 23. dxe4 {[%emt 0:01:36]} fxe4 {[%emt 0:00:49]} 24. Qe1 {[%emt 0:01:41]} Bc7 {[%emt 0:01:57]} 25. Ne5 {[%emt 0:05:07]} Rxe5 {[%emt 0:03:13]} 26. Bxe5 {[%emt 0:02:37]} Bxe5 {[%emt 0:00:20]} 27. g3 {[%emt 0:00:54]} Bxa1 {[%emt 0:01:18]} 28. Qxe4 {[%emt 0:04:37]} Qxd2 {[%emt 0:03:18]} 29. Qxg4 {[%emt 0:01:42]} Bc3 {[%emt 0:03:53]} 30. Qe6+ {[%emt 0:01:08]} Kh8 {[%emt 0:00:51]} 31. Qxc6 {[%emt 0:02:44]} Rb8 {[%emt 0:01:58]} 32. Qc7 {[%emt 0:02:07]} Rf8 {[%emt 0:01:16]} 33. Qxb7 {[%emt 0:01:11]} Qxf2 {[%emt 0:01:32]} 34. Rg2 {[%emt 0:03:02]} Qf6 {[%emt 0:01:43]} 35. a4 {[%emt 0:05:06]} Bd4 {[%emt 0:01:41]} 36. h4 {[%emt 0:00:41]} h5 {[%emt 0:01:06]} 37. Kh2 {[%emt 0:00:32]} g5 {[%emt 0:01:38]} 38. Qd5 {[%emt 0:00:30]} Be5 {[%emt 0:01:00]} 39. hxg5 {[%emt 0:00:35]} Qxg5 {[%emt 0:01:04]} 40. Qe4 {[%emt 0:00:36]} 0-1

[Event "Skalica SCHAEFFLER Open 2019"]
[Site "Skalica"]
[Date "2019.08.28"]
[Round "5.10"]
[White "Gres, Michal"]
[Black "Dubanova, Kristina"]
[Result "1-0"]
[ECO "C50"]
[WhiteElo "1410"]
[BlackElo "1048"]
[Annotator "NA"]
[PlyCount "105"]
[EventDate "2019.08.25"]
[EventType "swiss"]
[EventCountry "SVK"]
[SourceTitle "playchess.com"]
[Source "ChessBase"]
[SourceQuality "1"]
[TimeControl "40/5400+30:1800+30"]

1. e4 {[%emt 0:00:00]} e5 {[%emt 0:08:52]} 2. Nf3 {[%emt 0:14:17]} Nc6 {[%emt 0:00:30]} 3. Bc4 {[%emt 0:00:30]} Nf6 {[%emt 0:00:30]} 4. d3 {[%emt 0:00:30]} Bc5 {[%emt 0:00:30]} 5. O-O {[%emt 0:00:30]} d6 {[%emt 0:00:30]} 6. Re1 {[%emt 0:05:20]} Bg4 {[%emt 0:00:30]} 7. Nbd2 {[%emt 0:00:30]} Ne7 {[%emt 0:00:30]} 8. h3 {[%emt 0:00:30]} Bd7 {[%emt 0:00:30]} 9. Nf1 {[%emt 0:00:30]} Ng6 {[%emt 0:00:30]} 10. Ng3 {[%emt 0:00:30]} h6 {[%emt 0:22:31]} 11. Nf5 {[%emt 0:02:12]} Rh7 {[%emt 0:00:30]} 12. Nxg7+ {[%emt 0:06:07]} Rxg7 {[%emt 0:02:27]} 13. Bxh6 {[%emt 0:00:36]} Rg8 {[%emt 0:09:50]} 14. Ng5 {[%emt 0:04:27]} Nh8 {[%emt 0:04:41]} 15. Qd2 {[%emt 0:05:37]} Qe7 {[%emt 0:01:53]} 16. b4 {[%emt 0:04:45]} Bb6 {[%emt 0:00:47]} 17. Rf1 {[%emt 0:03:28]} O-O-O {[%emt 0:03:40]} 18. Kh1 {[%emt 0:05:31]} Rg6 {[%emt 0:02:28]} 19. a4 {[%emt 0:04:25]} c6 {[%emt 0:01:45]} 20. a5 {[%emt 0:00:52]} Bc7 {[%emt 0:00:25]} 21. Nf3 {[%emt 0:10:52]} d5 {[%emt 0:16:25]} 22. exd5 {[%emt 0:06:37]} cxd5 {[%emt 0:00:16]} 23. Bb3 {[%emt 0:00:20]} Qd6 {[%emt 0:05:29]} 24. Be3 {[%emt 0:03:09]} Rg7 {[%emt 0:04:07]} 25. c4 {[%emt 0:05:38]} d4 {[%emt 0:03:16]} 26. Bg5 {[%emt 0:02:56]} Re8 {[%emt 0:01:10]} 27. c5 {[%emt 0:01:38]} Qe7 {[%emt 0:01:40]} 28. Rfe1 {[%emt 0:00:03]} Bc6 {[%emt 0:03:23]} 29. Nxd4 {[%emt 0:02:44]} Qd8 {[%emt 0:02:32]} 30. Nxc6 {[%emt 0:01:21]} bxc6 {[%emt 0:00:36]} 31. Bh6 {[%emt 0:03:00]} Rh7 {[%emt 0:00:49]} 32. Bg5 {[%emt 0:01:33]} Rg8 {[%emt 0:00:58]} 33. h4 {[%emt 0:03:16]} Ng6 {[%emt 0:00:21]} 34. g3 {[%emt 0:00:31]} Qe7 {[%emt 0:00:48]} 35. d4 {[%emt 0:00:44]} Rd8 {[%emt 0:00:17]} 36. Qb2 {[%emt 0:01:03]} Rxd4 {[%emt 0:00:31]} 37. Qxd4 {[%emt 0:00:53]} exd4 {[%emt 0:00:36]} 38. Rxe7 {[%emt 0:00:16]} Nxe7 {[%emt 0:00:13]} 39. Bxf6 {[%emt 0:00:30]} Nf5 {[%emt 0:00:35]} 40. Bc2 {[%emt 0:00:36]} Rh5 {[%emt 0:02:00]} 41. Bxf5+ {[%emt 0:30:45]} Rxf5 {[%emt 0:29:45]} 42. Bxd4 {[%emt 0:00:15]} Rf3 {[%emt 0:00:47]} 43. Kg2 {[%emt 0:00:42]} Rb3 {[%emt 0:00:19]} 44. h5 {[%emt 0:00:17]} Rxb4 {[%emt 0:00:31]} 45. Bf6 {[%emt 0:00:31]} Re4 {[%emt 0:00:24]} 46. h6 {[%emt 0:00:20]} Be5 {[%emt 0:00:15]} 47. Bxe5 {[%emt 0:00:27]} Rxe5 {[%emt 0:00:07]} 48. g4 {[%emt 0:00:26]} Re8 {[%emt 0:00:28]} 49. g5 {[%emt 0:00:37]} Rh8 {[%emt 0:00:22]} 50. Rd1 {[%emt 0:00:31]} Kb7 {[%emt 0:00:52]} 51. Kg3 {[%emt 0:01:06]} Kc7 {[%emt 0:01:15]} 52. a6 {[%emt 0:00:00]} Rg8 {[%emt 0:00:28]} 53. Kg4 {[%emt 0:00:02]} 1-0

[Event "Skalica SCHAEFFLER Open 2019"]
[Site "Skalica"]
[Date "2019.08.29"]
[Round "6.1"]
[White "Vlcek, Antonin"]
[Black "Krupnova, Anna"]
[Result "1/2-1/2"]
[ECO "B12"]
[WhiteElo "1686"]
[BlackElo "1712"]
[Annotator "NA"]
[PlyCount "95"]
[EventDate "2019.08.25"]
[EventType "swiss"]
[EventCountry "SVK"]
[SourceTitle "playchess.com"]
[Source "ChessBase"]
[SourceQuality "1"]
[TimeControl "40/5400+30:1800+30"]

1. e4 {[%emt 0:00:00]} c6 {[%emt 0:00:00]} 2. d4 {[%emt 0:00:00]} d5 {[%emt 0:00:00]} 3. e5 {[%emt 0:00:16]} c5 {[%emt 0:00:02]} 4. Nf3 {[%emt 0:01:21]} Bg4 {[%emt 0:00:50]} 5. Bb5+ {[%emt 0:03:23]} Nd7 {[%emt 0:04:15]} 6. dxc5 {[%emt 0:04:04]} e6 {[%emt 0:05:21]} 7. Be3 {[%emt 0:05:48]} Rc8 {[%emt 0:02:18]} 8. b4 {[%emt 0:02:43]} Ne7 {[%emt 0:05:39]} 9. h3 {[%emt 0:07:12]} Bxf3 {[%emt 0:01:03]} 10. Qxf3 {[%emt 0:01:18]} Nc6 {[%emt 0:06:04]} 11. Bxc6 {[%emt 0:09:06]} Rxc6 {[%emt 0:00:35]} 12. Qg3 {[%emt 0:03:29]} f6 {[%emt 0:20:53]} 13. f4 {[%emt 0:01:20]} d4 {[%emt 0:07:10]} 14. Bxd4 {[%emt 0:05:33]} Nxe5 {[%emt 0:02:21]} 15. c3 {[%emt 0:01:08]} Nf7 {[%emt 0:05:11]} 16. O-O {[%emt 0:00:26]} Nh6 {[%emt 0:02:53]} 17. Qf3 {[%emt 0:02:55]} Nf5 {[%emt 0:02:53]} 18. Bf2 {[%emt 0:02:07]} Be7 {[%emt 0:03:08]} 19. Na3 {[%emt 0:01:58]} O-O {[%emt 0:02:51]} 20. Rad1 {[%emt 0:02:18]} Qc8 {[%emt 0:06:07]} 21. g4 {[%emt 0:03:10]} Nh6 {[%emt 0:00:43]} 22. Nb5 {[%emt 0:00:26]} Ra6 {[%emt 0:01:51]} 23. a3 {[%emt 0:05:12]} Nf7 {[%emt 0:03:25]} 24. c4 {[%emt 0:01:57]} e5 {[%emt 0:06:58]} 25. fxe5 {[%emt 0:03:51]} Nxe5 {[%emt 0:00:48]} 26. Qd5+ {[%emt 0:00:22]} Kh8 {[%emt 0:01:20]} 27. Nd6 {[%emt 0:05:48]} Bxd6 {[%emt 0:01:35]} 28. cxd6 {[%emt 0:00:25]} Qd7 {[%emt 0:05:48]} 29. Bg3 {[%emt 0:00:55]} Ng6 {[%emt 0:01:42]} 30. Rd3 {[%emt 0:03:09]} Re8 {[%emt 0:00:27]} 31. c5 {[%emt 0:02:11]} h6 {[%emt 0:00:42]} 32. Qf5 {[%emt 0:01:33]} Nf8 {[%emt 0:00:32]} 33. Qxd7 {[%emt 0:01:39]} Nxd7 {[%emt 0:00:02]} 34. Re1 {[%emt 0:00:17]} Rxe1+ {[%emt 0:00:20]} 35. Bxe1 {[%emt 0:00:03]} Kg8 {[%emt 0:00:19]} 36. Bg3 {[%emt 0:00:36]} Kf8 {[%emt 0:00:34]} 37. Re3 {[%emt 0:01:01]} Ra4 {[%emt 0:00:42]} 38. Kg2 {[%emt 0:00:42]} a5 {[%emt 0:00:19]} 39. Re7 {[%emt 0:00:43]} axb4 {[%emt 0:00:31]} 40. Rxd7 {[%emt 0:00:32]} bxa3 {[%emt 0:00:49]} 41. Be1 {[%emt 0:32:11]} a2 {[%emt 0:30:19]} 42. Rd8+ {[%emt 0:03:32]} Kf7 {[%emt 0:00:12]} 43. Bc3 {[%emt 0:00:49]} Rc4 {[%emt 0:00:00]} 44. Rd7+ {[%emt 0:00:00]} Ke8 {[%emt 0:00:00]} 45. Re7+ {[%emt 0:00:00]} Kf8 {[%emt 0:00:00]} 46. Ba1 {[%emt 0:00:00]} Rc1 {[%emt 0:00:00]} 47. Bd4 {[%emt 0:00:00]} Rc4 {[%emt 0:00:00]} 48. Ba1 {[%emt 0:00:00]} 1/2-1/2

[Event "Skalica SCHAEFFLER Open 2019"]
[Site "Skalica"]
[Date "2019.08.29"]
[Round "6.2"]
[White "Kastler, Peter"]
[Black "Podskubka, Ondrej"]
[Result "1-0"]
[ECO "E14"]
[WhiteElo "1724"]
[BlackElo "1684"]
[Annotator "NA"]
[PlyCount "120"]
[EventDate "2019.08.25"]
[EventType "swiss"]
[EventCountry "SVK"]
[SourceTitle "playchess.com"]
[Source "ChessBase"]
[SourceQuality "1"]
[TimeControl "40/5400+30:1800+30"]

1. d4 {[%emt 0:07:15]} Nf6 {[%emt 0:00:00]} 2. c4 {[%emt 0:00:06]} e6 {[%emt 0:00:00]} 3. Nf3 {[%emt 0:00:11]} b6 {[%emt 0:00:00]} 4. e3 {[%emt 0:00:09]} Ba6 {[%emt 0:03:53]} 5. Be2 {[%emt 0:01:04]} Be7 {[%emt 0:00:27]} 6. Nc3 {[%emt 0:00:18]} O-O {[%emt 0:05:51]} 7. O-O {[%emt 0:00:28]} d5 {[%emt 0:01:23]} 8. cxd5 {[%emt 0:01:09]} Bxe2 {[%emt 0:00:20]} 9. Qxe2 {[%emt 0:00:13]} exd5 {[%emt 0:01:49]} 10. b3 {[%emt 0:03:28]} Nbd7 {[%emt 0:02:58]} 11. Bb2 {[%emt 0:03:11]} c5 {[%emt 0:02:27]} 12. Rac1 {[%emt 0:00:55]} Qb8 {[%emt 0:07:56]} 13. Rfd1 {[%emt 0:00:58]} Qb7 {[%emt 0:00:22]} 14. Ba3 {[%emt 0:02:19]} Rac8 {[%emt 0:02:31]} 15. Na4 {[%emt 0:05:38]} Ne4 {[%emt 0:03:22]} 16. dxc5 {[%emt 0:05:36]} Ndxc5 {[%emt 0:01:18]} 17. Nxc5 {[%emt 0:00:55]} bxc5 {[%emt 0:01:16]} 18. Nd2 {[%emt 0:03:13]} Nxd2 {[%emt 0:08:01]} 19. Rxd2 {[%emt 0:01:00]} d4 {[%emt 0:01:56]} 20. Rdc2 {[%emt 0:01:21]} dxe3 {[%emt 0:00:48]} 21. Qxe3 {[%emt 0:02:04]} Qa6 {[%emt 0:08:18]} 22. Bxc5 {[%emt 0:15:07]} Bxc5 {[%emt 0:00:56]} 23. Rxc5 {[%emt 0:00:35]} Rxc5 {[%emt 0:00:13]} 24. Rxc5 {[%emt 0:01:53]} Qxa2 {[%emt 0:00:12]} 25. g3 {[%emt 0:00:41]} g6 {[%emt 0:00:34]} 26. b4 {[%emt 0:00:21]} Qb1+ {[%emt 0:00:34]} 27. Rc1 {[%emt 0:00:54]} Qxb4 {[%emt 0:01:28]} 28. Qxa7 {[%emt 0:00:09]} Qd2 {[%emt 0:02:28]} 29. Qc5 {[%emt 0:02:22]} Rd8 {[%emt 0:00:26]} 30. h4 {[%emt 0:00:49]} h5 {[%emt 0:00:22]} 31. Kg2 {[%emt 0:02:56]} Kg7 {[%emt 0:00:13]} 32. Qc3+ {[%emt 0:00:08]} Qxc3 {[%emt 0:00:45]} 33. Rxc3 {[%emt 0:00:51]} Rd4 {[%emt 0:00:04]} 34. Kf3 {[%emt 0:01:29]} Ra4 {[%emt 0:00:20]} 35. Re3 {[%emt 0:00:10]} Kf6 {[%emt 0:00:49]} 36. Re4 {[%emt 0:01:08]} Rxe4 {[%emt 0:06:43]} 37. Kxe4 {[%emt 0:00:10]} Ke6 {[%emt 0:00:39]} 38. f3 {[%emt 0:00:49]} f6 {[%emt 0:00:00]} 39. Kf4 {[%emt 0:00:35]} Ke7 {[%emt 0:01:50]} 40. g4 {[%emt 0:02:19]} Ke6 {[%emt 0:00:41]} 41. gxh5 {[%emt 0:32:34]} gxh5 {[%emt 0:30:08]} 42. Ke4 {[%emt 0:00:15]} f5+ {[%emt 0:01:14]} 43. Kd4 {[%emt 0:00:34]} Kd6 {[%emt 0:04:33]} 44. f4 {[%emt 0:00:35]} Ke6 {[%emt 0:00:05]} 45. Kc5 {[%emt 0:00:23]} Ke7 {[%emt 0:00:21]} 46. Kd5 {[%emt 0:00:17]} Kf6 {[%emt 0:00:06]} 47. Kd6 {[%emt 0:00:06]} Kf7 {[%emt 0:00:22]} 48. Ke5 {[%emt 0:00:09]} Kg6 {[%emt 0:00:09]} 49. Ke6 {[%emt 0:00:12]} Kg7 {[%emt 0:00:12]} 50. Kxf5 {[%emt 0:01:04]} Kh6 {[%emt 0:00:06]} 51. Kf6 {[%emt 0:00:11]} Kh7 {[%emt 0:00:06]} 52. Kg5 {[%emt 0:00:06]} Kg7 {[%emt 0:00:06]} 53. Kxh5 {[%emt 0:00:18]} Kf6 {[%emt 0:00:06]} 54. Kg4 {[%emt 0:00:09]} Kg6 {[%emt 0:00:06]} 55. h5+ {[%emt 0:00:33]} Kf6 {[%emt 0:00:09]} 56. f5 {[%emt 0:00:25]} Kg7 {[%emt 0:00:05]} 57. Kg5 {[%emt 0:00:45]} Kf7 {[%emt 0:00:09]} 58. f6 {[%emt 0:00:21]} Kg8 {[%emt 0:00:07]} 59. Kf5 {[%emt 0:00:09]} Kh7 {[%emt 0:00:19]} 60. Ke6 {[%emt 0:00:10]} Kg8 {[%emt 0:00:04]} 1-0

[Event "Skalica SCHAEFFLER Open 2019"]
[Site "Skalica"]
[Date "2019.08.29"]
[Round "6.3"]
[White "Londin, Lukas Vojtech"]
[Black "Tutkova, Ludmila"]
[Result "1-0"]
[ECO "C56"]
[WhiteElo "1415"]
[BlackElo "1085"]
[Annotator "NA"]
[PlyCount "48"]
[EventDate "2019.08.25"]
[EventType "swiss"]
[EventCountry "SVK"]
[SourceTitle "playchess.com"]
[Source "ChessBase"]
[SourceQuality "1"]
[TimeControl "40/5400+30:1800+30"]

1. e4 {[%emt 0:00:00]} e5 {[%emt 0:00:00]} 2. Nf3 {[%emt 0:00:00]} Nc6 {[%emt 0:00:06]} 3. d4 {[%emt 0:00:00]} exd4 {[%emt 0:00:17]} 4. Bc4 {[%emt 0:00:00]} Nf6 {[%emt 0:00:18]} 5. e5 {[%emt 0:00:16]} Nxe5 {[%emt 0:00:51]} 6. Nxe5 {[%emt 0:00:40]} Qe7 {[%emt 0:00:08]} 7. Qe2 {[%emt 0:00:15]} d5 {[%emt 0:01:06]} 8. Bb5+ {[%emt 0:00:36]} c6 {[%emt 0:00:25]} 9. Nxc6 {[%emt 0:00:22]} Qxe2+ {[%emt 0:00:19]} 10. Kxe2 {[%emt 0:00:06]} bxc6 {[%emt 0:03:51]} 11. Bxc6+ {[%emt 0:00:20]} Kd8 {[%emt 0:00:06]} 12. Bxa8 {[%emt 0:00:43]} Kc7 {[%emt 0:00:01]} 13. Bf4+ {[%emt 0:00:55]} Kb6 {[%emt 0:00:18]} 14. Rd1 {[%emt 0:01:20]} Ba6+ {[%emt 0:00:19]} 15. Ke1 {[%emt 0:02:12]} Bc5 {[%emt 0:00:36]} 16. a3 {[%emt 0:03:07]} Rxa8 {[%emt 0:00:48]} 17. b4 {[%emt 0:00:15]} Re8+ {[%emt 0:00:38]} 18. Kd2 {[%emt 0:00:22]} Ne4+ {[%emt 0:02:13]} 19. Kc1 {[%emt 0:00:27]} Be7 {[%emt 0:00:48]} 20. f3 {[%emt 0:02:20]} Nd6 {[%emt 0:00:31]} 21. Nd2 {[%emt 0:01:05]} Nf5 {[%emt 0:02:56]} 22. Be5 {[%emt 0:00:30]} f6 {[%emt 0:00:30]} 23. Bg3 {[%emt 0:00:30]} Ne3 {[%emt 0:01:56]} 24. Be5 {[%emt 0:05:10]} f5 {[%emt 0:03:54]} 1-0

[Event "Skalica SCHAEFFLER Open 2019"]
[Site "Skalica"]
[Date "2019.08.29"]
[Round "6.4"]
[White "Gres, Michal"]
[Black "Polozov Yaroslavl"]
[Result "0-1"]
[ECO "B12"]
[WhiteElo "1410"]
[BlackElo "1000"]
[Annotator "NA"]
[PlyCount "58"]
[EventDate "2019.08.25"]
[EventType "swiss"]
[EventCountry "SVK"]
[SourceTitle "playchess.com"]
[Source "ChessBase"]
[SourceQuality "1"]
[TimeControl "40/5400+30:1800+30"]

1. e4 {[%emt 0:00:00]} c6 {[%emt 0:00:00]} 2. d4 {[%emt 0:00:00]} d5 {[%emt 0:00:00]} 3. e5 {[%emt 0:01:06]} Bf5 {[%emt 0:00:00]} 4. Bd3 {[%emt 0:07:17]} Bxd3 {[%emt 0:00:00]} 5. Qxd3 {[%emt 0:00:43]} e6 {[%emt 0:00:22]} 6. Ne2 {[%emt 0:02:29]} c5 {[%emt 0:01:04]} 7. dxc5 {[%emt 0:12:03]} Nc6 {[%emt 0:02:42]} 8. Be3 {[%emt 0:03:11]} Qc7 {[%emt 0:06:33]} 9. f4 {[%emt 0:05:36]} Nge7 {[%emt 0:02:00]} 10. Nbc3 {[%emt 0:06:14]} Nf5 {[%emt 0:00:44]} 11. Bf2 {[%emt 0:04:17]} Be7 {[%emt 0:03:48]} 12. g4 {[%emt 0:05:42]} Nh6 {[%emt 0:03:06]} 13. h3 {[%emt 0:02:43]} g5 {[%emt 0:01:42]} 14. Bg3 {[%emt 0:07:32]} O-O-O {[%emt 0:02:51]} 15. O-O-O {[%emt 0:05:14]} Na5 {[%emt 0:06:10]} 16. b4 {[%emt 0:08:58]} Nc4 {[%emt 0:00:32]} 17. Nd4 {[%emt 0:08:23]} a6 {[%emt 0:04:06]} 18. f5 {[%emt 0:06:35]} Qd7 {[%emt 0:01:59]} 19. f6 {[%emt 0:01:39]} Bf8 {[%emt 0:03:59]} 20. Nb3 {[%emt 0:04:02]} Qc7 {[%emt 0:01:27]} 21. Rhe1 {[%emt 0:01:51]} Kb8 {[%emt 0:00:30]} 22. Nd2 {[%emt 0:01:54]} Na3 {[%emt 0:01:38]} 23. Nxd5 {[%emt 0:02:52]} Rxd5 {[%emt 0:00:57]} 24. Qxa3 {[%emt 0:00:35]} Bxc5 {[%emt 0:01:14]} 25. bxc5 {[%emt 0:00:47]} Rxc5 {[%emt 0:00:11]} 26. Qb3 {[%emt 0:00:42]} Rc3 {[%emt 0:00:22]} 27. Qb4 {[%emt 0:00:34]} Rxg3 {[%emt 0:00:24]} 28. Nc4 {[%emt 0:00:20]} Rc8 {[%emt 0:00:53]} 29. Ne3 {[%emt 0:00:38]} Rxe3 {[%emt 0:00:35]} 0-1

[Event "Skalica SCHAEFFLER Open 2019"]
[Site "Skalica"]
[Date "2019.08.29"]
[Round "6.5"]
[White "Vach, Jozef"]
[Black "Kozusnik, Roman"]
[Result "1-0"]
[ECO "D02"]
[WhiteElo "1722"]
[BlackElo "1231"]
[Annotator "NA"]
[PlyCount "63"]
[EventDate "2019.08.25"]
[EventType "swiss"]
[EventCountry "SVK"]
[SourceTitle "playchess.com"]
[Source "ChessBase"]
[SourceQuality "1"]
[TimeControl "40/5400+30:1800+30"]

1. d4 {[%emt 0:00:00]} d5 {[%emt 0:00:00]} 2. Nf3 {[%emt 0:00:05]} Nf6 {[%emt 0:00:00]} 3. b3 {[%emt 0:00:09]} Bg4 {[%emt 0:01:18]} 4. Ne5 {[%emt 0:01:42]} Nbd7 {[%emt 0:03:01]} 5. Bb2 {[%emt 0:01:24]} e6 {[%emt 0:00:50]} 6. Nd2 {[%emt 0:01:38]} c6 {[%emt 0:03:15]} 7. Nxg4 {[%emt 0:01:37]} Nxg4 {[%emt 0:00:03]} 8. e3 {[%emt 0:01:04]} Ndf6 {[%emt 0:04:49]} 9. Be2 {[%emt 0:00:45]} Nh6 {[%emt 0:00:09]} 10. O-O {[%emt 0:00:21]} Bd6 {[%emt 0:00:28]} 11. c4 {[%emt 0:00:41]} b6 {[%emt 0:01:07]} 12. Rc1 {[%emt 0:01:36]} c5 {[%emt 0:07:04]} 13. cxd5 {[%emt 0:01:35]} exd5 {[%emt 0:01:09]} 14. Bb5+ {[%emt 0:01:29]} Kf8 {[%emt 0:09:21]} 15. Nf3 {[%emt 0:02:21]} g5 {[%emt 0:13:03]} 16. dxc5 {[%emt 0:03:42]} bxc5 {[%emt 0:02:30]} 17. Nxg5 {[%emt 0:08:54]} Rg8 {[%emt 0:04:38]} 18. Bxf6 {[%emt 0:01:27]} Qxf6 {[%emt 0:01:22]} 19. Nxh7+ {[%emt 0:00:11]} Ke7 {[%emt 0:00:55]} 20. Nxf6 {[%emt 0:00:23]} Kxf6 {[%emt 0:00:53]} 21. Be2 {[%emt 0:03:05]} Rh8 {[%emt 0:00:31]} 22. h3 {[%emt 0:04:12]} Rag8 {[%emt 0:00:37]} 23. Qxd5 {[%emt 0:02:32]} Nf5 {[%emt 0:00:30]} 24. Bg4 {[%emt 0:01:24]} Rxg4 {[%emt 0:01:05]} 25. Qf3 {[%emt 0:00:48]} Rg5 {[%emt 0:05:20]} 26. e4 {[%emt 0:05:01]} Kg7 {[%emt 0:00:30]} 27. exf5 {[%emt 0:00:23]} a5 {[%emt 0:01:24]} 28. g4 {[%emt 0:01:02]} Kf6 {[%emt 0:01:43]} 29. Rfe1 {[%emt 0:01:33]} Kg7 {[%emt 0:00:20]} 30. Qc3+ {[%emt 0:00:49]} f6 {[%emt 0:00:11]} 31. Re6 {[%emt 0:00:56]} Rh6 {[%emt 0:01:06]} 32. Rxd6 {[%emt 0:00:26]} 1-0